[Event "FIDE World Rapid Chess Championship 2021"]
[White "Anton Guijarro, David"]
[Black "Giri, Anish"]
[WhiteFideId "2285525"]
[BlackFideId "24116068"]
[WhiteElo "2627"]
[BlackElo "2767"]
[Result "1/2-1/2"]
[Round "06"]
[TimeControl "900+10"]
[Date "2021.12.27"]
[WhiteClock "0:00:29"]
[BlackClock "0:01:31"]

1. d4 {[%clk 0:15:00]}  Nf6 {[%clk 0:15:00]} 2. Nf3 {[%clk 0:15:17]}  g6 {[%clk 0:15:00]} 3. e3 {[%clk 0:15:17]}  Bg7 {[%clk 0:15:00]} 4. Be2 {[%clk 0:15:17]}  O-O {[%clk 0:14:54]} 5. O-O {[%clk 0:14:53]}  c5 {[%clk 0:14:41]} 6. dxc5 {[%clk 0:14:45]}  Na6 {[%clk 0:14:41]} 7. c4 {[%clk 0:12:41]}  Nxc5 {[%clk 0:13:32]} 8. b4 {[%clk 0:12:41]}  Nfe4 {[%clk 0:13:32]} 9. Nd4 {[%clk 0:12:41]}  Ne6 {[%clk 0:13:32]} 10. Bb2 {[%clk 0:12:41]}  d5 {[%clk 0:12:51]} 11. Nxe6 {[%clk 0:12:56]}  Bxe6 {[%clk 0:10:33]} 12. Bxg7 {[%clk 0:12:56]}  Kxg7 {[%clk 0:10:33]} 13. Qd4+ {[%clk 0:12:56]}  Kg8 {[%clk 0:10:51]} 14. Rd1 {[%clk 0:11:33]}  Nf6 {[%clk 0:10:37]} 15. c5 {[%clk 0:10:42]}  b6 {[%clk 0:10:37]} 16. c6 {[%clk 0:10:31]}  Qd6 {[%clk 0:09:56]} 17. b5 {[%clk 0:09:22]}  Bf5 {[%clk 0:09:48]} 18. Nd2 {[%clk 0:08:59]}  Rfe8 {[%clk 0:08:36]} 19. a4 {[%clk 0:08:59]}  e5 {[%clk 0:08:44]} 20. Qb2 {[%clk 0:06:41]}  Qc7 {[%clk 0:08:06]} 21. h3 {[%clk 0:06:47]}  Rad8 {[%clk 0:08:06]} 22. a5 {[%clk 0:06:47]}  bxa5 {[%clk 0:05:37]} 23. Qa3 {[%clk 0:06:08]}  d4 {[%clk 0:05:37]} 24. exd4 {[%clk 0:04:09]}  exd4 {[%clk 0:05:17]} 25. Bf1 {[%clk 0:04:09]}  Bc2 {[%clk 0:05:17]} 26. Rdc1 {[%clk 0:04:09]}  d3 {[%clk 0:05:17]} 27. Qxa5 {[%clk 0:04:05]}  Qf4 {[%clk 0:04:47]} 28. g3 {[%clk 0:04:05]}  Qg5 {[%clk 0:04:47]} 29. Re1 {[%clk 0:04:07]}  Qc5 {[%clk 0:01:29]} 30. Qxa7 {[%clk 0:02:59]}  Qxb5 {[%clk 0:00:59]} 31. Qb7 {[%clk 0:02:59]}  Qxb7 {[%clk 0:00:59]} 32. Rxe8+ {[%clk 0:01:23]}  Rxe8 {[%clk 0:00:27]} 33. cxb7 {[%clk 0:01:23]}  Nd7 {[%clk 0:00:27]} 34. Ra8 {[%clk 0:01:23]}  Nb8 {[%clk 0:00:27]} 35. f4 {[%clk 0:01:23]}  Kf8 {[%clk 0:01:03]} 36. Kf2 {[%clk 0:00:46]}  Ke7 {[%clk 0:01:03]} 37. Ra3 {[%clk 0:00:46]}  Nd7 {[%clk 0:01:03]} 38. Bxd3 {[%clk 0:00:46]}  Bxd3 {[%clk 0:01:03]} 39. Rxd3 {[%clk 0:00:46]}  Rb8 {[%clk 0:01:03]} 40. Rb3 {[%clk 0:00:46]}  Nc5 {[%clk 0:00:58]} 41. Rb5 {[%clk 0:00:48]}  Kd6 {[%clk 0:00:58]} 42. Nc4+ {[%clk 0:00:48]}  Kc6 {[%clk 0:00:58]} 43. Rb1 {[%clk 0:00:48]}  Nxb7 {[%clk 0:01:06]} 44. Ne5+ {[%clk 0:00:22]}  Kc7 {[%clk 0:01:06]} 45. Rc1+ {[%clk 0:00:22]}  Kd6 {[%clk 0:01:06]} 46. Nxf7+ {[%clk 0:00:22]}  Ke7 {[%clk 0:01:06]} 47. Rc7+ {[%clk 0:00:22]}  Kf6 {[%clk 0:00:00]} 48. Ne5 {[%clk 0:00:31]}  Ke6 {[%clk 0:00:00]} 49. Rxh7 {[%clk 0:00:31]}  Nd6 {[%clk 0:00:00]} 50. Rg7 {[%clk 0:00:31]}  Kf5 {[%clk 0:00:02]} 51. Rxg6 {[%clk 0:00:17]}  Ne4+ {[%clk 0:00:02]} 52. Ke2 {[%clk 0:00:17]}  Rb2+ {[%clk 0:00:02]} 53. Kd1 {[%clk 0:00:17]}  Rg2 {[%clk 0:00:02]} 54. Rg8 {[%clk 0:00:17]}  Rxg3 {[%clk 0:00:02]} 55. Rf8+ {[%clk 0:00:17]}  Ke6 {[%clk 0:00:02]} 56. h4 {[%clk 0:00:27]}  Rh3 {[%clk 0:00:21]} 57. Ng6 {[%clk 0:00:27]}  Nf6 {[%clk 0:00:21]} 58. Ke2 {[%clk 0:00:27]}  Kf5 {[%clk 0:00:21]} 59. Ne7+ {[%clk 0:00:27]}  Ke6 {[%clk 0:00:21]} 60. Ng6 {[%clk 0:00:27]}  Kf5 {[%clk 0:00:21]} 61. Ne5 {[%clk 0:00:27]}  Rxh4 {[%clk 0:00:21]} 62. Nd7 {[%clk 0:00:27]}  Rh6 {[%clk 0:00:21]} 63. Kf3 {[%clk 0:00:25]}  Rh3+ {[%clk 0:00:49]} 64. Kg2 {[%clk 0:00:25]}  Rh6 {[%clk 0:00:49]} 65. Kg3 {[%clk 0:00:25]}  Rg6+ {[%clk 0:00:49]} 66. Kf3 {[%clk 0:00:25]}  Rh6 {[%clk 0:00:49]} 67. Ke3 {[%clk 0:00:25]}  Rh3+ {[%clk 0:00:49]} 68. Kd4 {[%clk 0:00:25]}  Rh6 {[%clk 0:00:49]} 69. Rxf6+ {[%clk 0:00:25]}  Rxf6 {[%clk 0:00:49]} 70. Nxf6 {[%clk 0:00:29]}  Kxf4 {[%clk 0:01:31]} 1/2-1/2


[Site "http://www.Chess.com"]

[Event "FIDE World Rapid Chess Championship 2021"]
[White "Grischuk, Alexander"]
[Black "Cheparinov, Ivan"]
[WhiteFideId "4126025"]
[BlackFideId "2905540"]
[WhiteElo "2763"]
[BlackElo "2621"]
[Result "1-0"]
[Round "06"]
[TimeControl "900+10"]
[Date "2021.12.27"]
[WhiteClock "0:00:33"]
[BlackClock "0:00:30"]

1. e4 {[%clk 0:15:00]}  e5 {[%clk 0:15:00]} 2. Nf3 {[%clk 0:15:00]}  Nc6 {[%clk 0:15:00]} 3. Bb5 {[%clk 0:15:31]}  a6 {[%clk 0:15:26]} 4. Ba4 {[%clk 0:15:31]}  Nf6 {[%clk 0:15:26]} 5. O-O {[%clk 0:15:31]}  Be7 {[%clk 0:15:26]} 6. d3 {[%clk 0:15:31]}  b5 {[%clk 0:15:26]} 7. Bb3 {[%clk 0:15:31]}  d6 {[%clk 0:15:26]} 8. a4 {[%clk 0:15:31]}  Bd7 {[%clk 0:15:26]} 9. Bd2 {[%clk 0:15:24]}  O-O {[%clk 0:15:58]} 10. h3 {[%clk 0:15:21]}  b4 {[%clk 0:15:24]} 11. c3 {[%clk 0:12:58]}  Rb8 {[%clk 0:12:57]} 12. a5 {[%clk 0:12:09]}  h6 {[%clk 0:12:42]} 13. Re1 {[%clk 0:08:49]}  Re8 {[%clk 0:11:06]} 14. d4 {[%clk 0:08:55]}  bxc3 {[%clk 0:08:17]} 15. bxc3 {[%clk 0:08:23]}  Bf8 {[%clk 0:07:35]} 16. d5 {[%clk 0:08:28]}  Ne7 {[%clk 0:07:35]} 17. c4 {[%clk 0:06:27]}  c5 {[%clk 0:06:35]} 18. Nc3 {[%clk 0:06:27]}  Qc7 {[%clk 0:06:37]} 19. Ba4 {[%clk 0:06:07]}  Rb7 {[%clk 0:05:09]} 20. Bxd7 {[%clk 0:03:45]}  Nxd7 {[%clk 0:04:29]} 21. Ne2 {[%clk 0:03:45]}  g6 {[%clk 0:04:29]} 22. Qc2 {[%clk 0:03:45]}  Bg7 {[%clk 0:04:29]} 23. Ng3 {[%clk 0:03:11]}  Reb8 {[%clk 0:04:22]} 24. Rab1 {[%clk 0:03:11]}  Rxb1 {[%clk 0:04:22]} 25. Rxb1 {[%clk 0:03:11]}  Rxb1+ {[%clk 0:04:17]} 26. Qxb1 {[%clk 0:02:50]}  Qb8 {[%clk 0:04:17]} 27. Qc2 {[%clk 0:02:50]}  Nf6 {[%clk 0:04:17]} 28. Ne1 {[%clk 0:02:50]}  Qb7 {[%clk 0:03:29]} 29. f4 {[%clk 0:02:46]}  exf4 {[%clk 0:03:29]} 30. Bxf4 {[%clk 0:01:55]}  Qc7 {[%clk 0:03:34]} 31. Nf3 {[%clk 0:01:55]}  Nd7 {[%clk 0:03:34]} 32. Qa4 {[%clk 0:01:55]}  Kf8 {[%clk 0:03:07]} 33. Ne2 {[%clk 0:01:43]}  Nc8 {[%clk 0:03:07]} 34. Nc1 {[%clk 0:01:33]}  Ke7 {[%clk 0:01:35]} 35. Nd3 {[%clk 0:01:20]}  Bc3 {[%clk 0:01:35]} 36. Bxh6 {[%clk 0:01:20]}  Qxa5 {[%clk 0:01:35]} 37. Qc6 {[%clk 0:01:16]}  Ncb6 {[%clk 0:00:37]} 38. e5 {[%clk 0:00:33]}  Nxc4 {[%clk 0:00:18]} 39. exd6+ {[%clk 0:00:33]}  Nxd6 {[%clk 0:00:18]} 40. Bf4 {[%clk 0:00:33]}  Nf5 {[%clk 0:00:18]} 41. d6+ {[%clk 0:00:33]}  Ke8 {[%clk 0:00:18]} 42. Nfe5 {[%clk 0:00:32]}  Qd8 {[%clk 0:00:21]} 43. Kh2 {[%clk 0:00:32]}  Nd4 {[%clk 0:00:21]} 44. Qa4 {[%clk 0:00:32]}  Ne6 {[%clk 0:00:21]} 45. Bg3 {[%clk 0:00:32]}  Qc8 {[%clk 0:00:21]} 46. Nxd7 {[%clk 0:00:30]}  Qxd7 {[%clk 0:00:32]} 47. Qxa6 {[%clk 0:00:30]}  Kf8 {[%clk 0:00:32]} 48. Be5 {[%clk 0:00:30]}  Bd4 {[%clk 0:00:32]} 49. Bxd4 {[%clk 0:00:30]}  Nxd4 {[%clk 0:00:32]} 50. Qa8+ {[%clk 0:00:30]}  Qe8 {[%clk 0:00:18]} 51. Qd5 {[%clk 0:00:13]}  Ne6 {[%clk 0:00:18]} 52. Qe5 {[%clk 0:00:13]}  Ng7 {[%clk 0:00:18]} 53. Qxc5 {[%clk 0:00:13]}  Kg8 {[%clk 0:00:18]} 54. Ne5 {[%clk 0:00:13]}  Ne6 {[%clk 0:00:18]} 55. d7 {[%clk 0:00:13]}  Qd8 {[%clk 0:00:18]} 56. Qd6 {[%clk 0:00:13]}  Nf8 {[%clk 0:00:32]} 57. Qd5 {[%clk 0:00:32]}  Ne6 {[%clk 0:00:32]} 58. Nc6 {[%clk 0:00:32]}  Qc7+ {[%clk 0:00:32]} 59. Kh1 {[%clk 0:00:32]}  Kh7 {[%clk 0:00:32]} 60. d8=Q {[%clk 0:00:32]}  Nxd8 {[%clk 0:00:32]} 61. Nxd8 {[%clk 0:00:33]}  Qc1+ {[%clk 0:00:30]} 62. Kh2 {[%clk 0:00:33]}  Qc7+ {[%clk 0:00:30]} 63. g3 {[%clk 0:00:33]} 1-0


[Site "http://www.Chess.com"]

[Event "FIDE World Rapid Chess Championship 2021"]
[White "Petrosian, Tigran L."]
[Black "Fedoseev, Vladimir"]
[WhiteFideId "13301616"]
[BlackFideId "24130737"]
[WhiteElo "2621"]
[BlackElo "2692"]
[Result "0-1"]
[Round "06"]
[TimeControl "900+10"]
[Date "2021.12.27"]
[WhiteClock "0:00:14"]
[BlackClock "0:02:39"]

1. e4 {[%clk 0:15:00]}  c6 {[%clk 0:15:00]} 2. Nf3 {[%clk 0:15:18]}  d5 {[%clk 0:15:00]} 3. d3 {[%clk 0:15:18]}  Nd7 {[%clk 0:15:00]} 4. exd5 {[%clk 0:15:33]}  cxd5 {[%clk 0:14:11]} 5. d4 {[%clk 0:15:33]}  e6 {[%clk 0:14:19]} 6. Bd3 {[%clk 0:13:55]}  Bd6 {[%clk 0:14:19]} 7. O-O {[%clk 0:13:55]}  Ngf6 {[%clk 0:14:19]} 8. Qe2 {[%clk 0:13:56]}  O-O {[%clk 0:13:02]} 9. Ne5 {[%clk 0:12:16]}  Be7 {[%clk 0:12:23]} 10. Bf4 {[%clk 0:11:53]}  Nxe5 {[%clk 0:12:23]} 11. Bxe5 {[%clk 0:11:53]}  Bd7 {[%clk 0:11:13]} 12. Nd2 {[%clk 0:11:52]}  Qb6 {[%clk 0:11:13]} 13. Rab1 {[%clk 0:11:54]}  Rac8 {[%clk 0:10:27]} 14. c3 {[%clk 0:11:54]}  a6 {[%clk 0:10:27]} 15. Rfe1 {[%clk 0:11:28]}  Bb5 {[%clk 0:09:47]} 16. Bxb5 {[%clk 0:11:28]}  Qxb5 {[%clk 0:09:47]} 17. Qxb5 {[%clk 0:11:28]}  axb5 {[%clk 0:09:47]} 18. Bxf6 {[%clk 0:11:28]}  gxf6 {[%clk 0:09:50]} 19. a3 {[%clk 0:11:21]}  Bd6 {[%clk 0:09:50]} 20. g3 {[%clk 0:11:29]}  Rfe8 {[%clk 0:08:42]} 21. Re2 {[%clk 0:08:22]}  Kf8 {[%clk 0:08:03]} 22. Rbe1 {[%clk 0:08:22]}  Ke7 {[%clk 0:08:03]} 23. f4 {[%clk 0:07:45]}  Rg8 {[%clk 0:07:56]} 24. Kf2 {[%clk 0:06:13]}  Kd7 {[%clk 0:07:36]} 25. Nf3 {[%clk 0:06:13]}  h5 {[%clk 0:07:36]} 26. Ke3 {[%clk 0:06:12]}  Rg4 {[%clk 0:07:07]} 27. Rf1 {[%clk 0:06:12]}  Rh8 {[%clk 0:07:07]} 28. Ref2 {[%clk 0:03:56]}  Kc7 {[%clk 0:07:00]} 29. Kd3 {[%clk 0:03:56]}  Be7 {[%clk 0:06:52]} 30. f5 {[%clk 0:03:32]}  Kd7 {[%clk 0:05:50]} 31. Re2 {[%clk 0:03:32]}  Bd8 {[%clk 0:05:50]} 32. Nh4 {[%clk 0:03:32]}  Re8 {[%clk 0:05:44]} 33. Rfe1 {[%clk 0:00:29]}  Bc7 {[%clk 0:05:44]} 34. Kc2 {[%clk 0:00:29]}  e5 {[%clk 0:05:44]} 35. Ng2 {[%clk 0:00:33]}  Kc6 {[%clk 0:05:04]} 36. Rd1 {[%clk 0:00:33]}  Rd8 {[%clk 0:05:04]} 37. Kb3 {[%clk 0:00:40]}  Rg5 {[%clk 0:04:34]} 38. Nh4 {[%clk 0:00:40]}  Rdg8 {[%clk 0:03:27]} 39. Red2 {[%clk 0:00:21]}  Rd8 {[%clk 0:03:27]} 40. Re2 {[%clk 0:00:21]}  Bd6 {[%clk 0:03:27]} 41. Rf1 {[%clk 0:00:21]}  Re8 {[%clk 0:03:05]} 42. Kc2 {[%clk 0:00:24]}  Bf8 {[%clk 0:03:05]} 43. Kd1 {[%clk 0:00:22]}  Rg4 {[%clk 0:02:22]} 44. Rfe1 {[%clk 0:00:14]}  Bd6 {[%clk 0:02:22]} 45. Kc2 {[%clk 0:00:14]}  Reg8 {[%clk 0:02:22]} 46. Nf3 {[%clk 0:00:14]}  e4 {[%clk 0:02:22]} 47. Nh4 {[%clk 0:00:14]}  Bf4 {[%clk 0:02:22]} 48. Ng2 {[%clk 0:00:24]}  Bg5 {[%clk 0:02:13]} 49. Rf1 {[%clk 0:00:24]}  h4 {[%clk 0:02:13]} 50. gxh4 {[%clk 0:00:24]}  Bxh4 {[%clk 0:02:13]} 51. Ne3 {[%clk 0:00:24]}  Rg1 {[%clk 0:02:37]} 52. Rxg1 {[%clk 0:00:12]}  Rxg1 {[%clk 0:02:37]} 53. Rg2 {[%clk 0:00:12]}  Rh1 {[%clk 0:02:37]} 54. Ng4 {[%clk 0:00:12]}  Bg5 {[%clk 0:02:37]} 55. Re2 {[%clk 0:00:12]}  Rf1 {[%clk 0:02:37]} 56. Nf2 {[%clk 0:00:12]}  Bh4 {[%clk 0:02:37]} 57. Nd1 {[%clk 0:00:12]}  Rxf5 {[%clk 0:02:39]} 58. Rg2 {[%clk 0:00:14]}  Rh5 {[%clk 0:02:39]} 59. Rg7 {[%clk 0:00:14]}  Bg5 {[%clk 0:02:39]} 60. Rxf7 {[%clk 0:00:14]}  Rxh2+ {[%clk 0:02:39]} 61. Kb3 {[%clk 0:00:14]}  Rd2 {[%clk 0:02:39]} 0-1


[Site "http://www.Chess.com"]

[Event "FIDE World Rapid Chess Championship 2021"]
[White "Firouzja, Alireza"]
[Black "Gareyev, Timur"]
[WhiteFideId "12573981"]
[BlackFideId "14200937"]
[WhiteElo "2656"]
[BlackElo "2578"]
[Result "1-0"]
[Round "06"]
[TimeControl "900+10"]
[Date "2021.12.27"]
[WhiteClock "0:01:12"]
[BlackClock "0:01:06"]

1. d4 {[%clk 0:15:00]}  Nf6 {[%clk 0:15:00]} 2. c4 {[%clk 0:15:17]}  Nc6 {[%clk 0:15:00]} 3. Nf3 {[%clk 0:14:54]}  e6 {[%clk 0:14:28]} 4. Nc3 {[%clk 0:14:52]}  Bb4 {[%clk 0:14:36]} 5. Qc2 {[%clk 0:14:52]}  d6 {[%clk 0:14:36]} 6. e4 {[%clk 0:10:06]}  e5 {[%clk 0:14:28]} 7. d5 {[%clk 0:08:48]}  Bxc3+ {[%clk 0:13:02]} 8. Qxc3 {[%clk 0:08:51]}  Ne7 {[%clk 0:12:50]} 9. Bd3 {[%clk 0:08:51]}  O-O {[%clk 0:12:50]} 10. h3 {[%clk 0:07:24]}  a5 {[%clk 0:12:22]} 11. Be3 {[%clk 0:04:45]}  b6 {[%clk 0:11:56]} 12. Bc2 {[%clk 0:04:33]}  Nd7 {[%clk 0:11:05]} 13. Nh4 {[%clk 0:03:32]}  Nc5 {[%clk 0:09:27]} 14. Nf5 {[%clk 0:03:32]}  Kh8 {[%clk 0:08:36]} 15. g4 {[%clk 0:02:09]}  Bd7 {[%clk 0:04:21]} 16. h4 {[%clk 0:02:16]}  Rb8 {[%clk 0:04:21]} 17. h5 {[%clk 0:02:16]}  f6 {[%clk 0:04:21]} 18. b3 {[%clk 0:02:13]}  Nb7 {[%clk 0:03:39]} 19. f3 {[%clk 0:02:13]}  b5 {[%clk 0:02:44]} 20. cxb5 {[%clk 0:02:13]}  Bxb5 {[%clk 0:02:44]} 21. h6 {[%clk 0:02:13]}  g5 {[%clk 0:02:44]} 22. Ng7 {[%clk 0:02:13]}  Qd7 {[%clk 0:02:44]} 23. Kf2 {[%clk 0:01:52]}  Rfc8 {[%clk 0:02:57]} 24. Qd2 {[%clk 0:01:52]}  c6 {[%clk 0:02:57]} 25. Nh5 {[%clk 0:01:52]}  Ng8 {[%clk 0:02:57]} 26. Rac1 {[%clk 0:01:22]}  Nd8 {[%clk 0:02:41]} 27. a4 {[%clk 0:01:22]}  Ba6 {[%clk 0:02:41]} 28. Qxa5 {[%clk 0:00:51]}  Ra8 {[%clk 0:02:32]} 29. Qd2 {[%clk 0:00:51]}  c5 {[%clk 0:02:22]} 30. b4 {[%clk 0:00:51]}  cxb4 {[%clk 0:02:22]} 31. Bb3 {[%clk 0:00:51]}  Nf7 {[%clk 0:02:22]} 32. Rc6 {[%clk 0:00:51]}  Bb7 {[%clk 0:02:22]} 33. Rxc8 {[%clk 0:01:11]}  Rxc8 {[%clk 0:02:36]} 34. Qxb4 {[%clk 0:01:11]}  Ba6 {[%clk 0:02:36]} 35. a5 {[%clk 0:01:11]}  Nfxh6 {[%clk 0:02:36]} 36. Ng3 {[%clk 0:01:11]}  Bb5 {[%clk 0:02:00]} 37. Rc1 {[%clk 0:01:13]}  Rf8 {[%clk 0:02:00]} 38. Bd1 {[%clk 0:00:47]}  Ne7 {[%clk 0:01:23]} 39. Bb6 {[%clk 0:00:47]}  Rc8 {[%clk 0:01:23]} 40. Rxc8+ {[%clk 0:00:47]}  Nxc8 {[%clk 0:01:23]} 41. Be3 {[%clk 0:00:49]}  Kg7 {[%clk 0:01:06]} 42. Be2 {[%clk 0:00:49]}  Bxe2 {[%clk 0:01:06]} 43. Nxe2 {[%clk 0:00:49]}  Nf7 {[%clk 0:01:06]} 44. a6 {[%clk 0:00:49]}  Nd8 {[%clk 0:01:06]} 45. Qb8 {[%clk 0:01:12]} 1-0


[Site "http://www.Chess.com"]

[Event "FIDE World Rapid Chess Championship 2021"]
[White "Nakamura, Hikaru"]
[Black "Predke, Alexandr"]
[WhiteFideId "2016192"]
[BlackFideId "24107581"]
[WhiteElo "2836"]
[BlackElo "2630"]
[Result "1-0"]
[Round "06"]
[TimeControl "900+10"]
[Date "2021.12.27"]
[WhiteClock "0:00:36"]
[BlackClock "0:00:31"]

1. e4 {[%clk 0:15:00]}  e5 {[%clk 0:15:00]} 2. Nf3 {[%clk 0:15:00]}  Nc6 {[%clk 0:15:21]} 3. Bb5 {[%clk 0:15:34]}  a6 {[%clk 0:15:21]} 4. Ba4 {[%clk 0:15:34]}  Nf6 {[%clk 0:15:21]} 5. O-O {[%clk 0:15:34]}  Be7 {[%clk 0:15:21]} 6. Re1 {[%clk 0:15:34]}  b5 {[%clk 0:15:21]} 7. Bb3 {[%clk 0:15:34]}  Bb7 {[%clk 0:15:21]} 8. c3 {[%clk 0:15:34]}  d5 {[%clk 0:15:21]} 9. exd5 {[%clk 0:15:15]}  Nxd5 {[%clk 0:16:04]} 10. Nxe5 {[%clk 0:15:15]}  Nxe5 {[%clk 0:16:17]} 11. Rxe5 {[%clk 0:14:19]}  O-O {[%clk 0:16:17]} 12. d4 {[%clk 0:13:48]}  Bf6 {[%clk 0:15:38]} 13. Rf5 {[%clk 0:13:48]}  Qd7 {[%clk 0:09:57]} 14. Bc2 {[%clk 0:10:56]}  g6 {[%clk 0:07:53]} 15. Rf3 {[%clk 0:10:26]}  Bg7 {[%clk 0:07:53]} 16. Nd2 {[%clk 0:10:26]}  Rae8 {[%clk 0:07:58]} 17. Nb3 {[%clk 0:10:09]}  Nb6 {[%clk 0:05:39]} 18. Rg3 {[%clk 0:08:25]}  Bd5 {[%clk 0:05:00]} 19. Bf4 {[%clk 0:07:38]}  Na4 {[%clk 0:04:27]} 20. Rb1 {[%clk 0:07:29]}  Re7 {[%clk 0:03:58]} 21. Qd2 {[%clk 0:06:09]}  Rfe8 {[%clk 0:03:22]} 22. Bd3 {[%clk 0:06:09]}  Be4 {[%clk 0:03:28]} 23. h3 {[%clk 0:01:46]}  Qf5 {[%clk 0:00:59]} 24. Nc1 {[%clk 0:00:55]}  Nb6 {[%clk 0:00:50]} 25. Rg5 {[%clk 0:00:55]}  Qd7 {[%clk 0:00:50]} 26. Bxe4 {[%clk 0:00:00]}  Rxe4 {[%clk 0:00:48]} 27. Nd3 {[%clk 0:00:00]}  Qe6 {[%clk 0:00:48]} 28. Qd1 {[%clk 0:00:00]}  Qxa2 {[%clk 0:00:48]} 29. Ra1 {[%clk 0:00:00]}  Qc4 {[%clk 0:00:17]} 30. Bg3 {[%clk 0:00:13]}  Nd5 {[%clk 0:00:17]} 31. Ne5 {[%clk 0:00:13]}  Bxe5 {[%clk 0:00:17]} 32. Rxe5 {[%clk 0:00:13]}  R8xe5 {[%clk 0:00:17]} 33. Bxe5 {[%clk 0:00:13]}  f6 {[%clk 0:00:17]} 34. Bg3 {[%clk 0:00:13]}  b4 {[%clk 0:00:30]} 35. Qa4 {[%clk 0:00:20]}  Qb5 {[%clk 0:00:30]} 36. Qa2 {[%clk 0:00:20]}  bxc3 {[%clk 0:00:30]} 37. bxc3 {[%clk 0:00:20]}  Re2 {[%clk 0:00:30]} 38. Qxa6 {[%clk 0:00:20]}  Qxa6 {[%clk 0:00:30]} 39. Rxa6 {[%clk 0:00:20]}  Nxc3 {[%clk 0:00:30]} 40. Bxc7 {[%clk 0:00:32]}  Nd5 {[%clk 0:00:35]} 41. Bd6 {[%clk 0:00:32]}  Re1+ {[%clk 0:00:35]} 42. Kh2 {[%clk 0:00:32]}  Kf7 {[%clk 0:00:35]} 43. Bc5 {[%clk 0:00:32]}  h5 {[%clk 0:00:35]} 44. g3 {[%clk 0:00:41]}  Re2 {[%clk 0:00:27]} 45. Kg2 {[%clk 0:00:41]}  Rc2 {[%clk 0:00:27]} 46. Kf3 {[%clk 0:00:41]}  f5 {[%clk 0:00:27]} 47. Ra7+ {[%clk 0:00:17]}  Ke6 {[%clk 0:00:41]} 48. Rg7 {[%clk 0:00:17]}  Kf6 {[%clk 0:00:41]} 49. Rd7 {[%clk 0:00:17]}  Nc3 {[%clk 0:00:41]} 50. d5 {[%clk 0:00:17]}  Ke5 {[%clk 0:00:41]} 51. d6 {[%clk 0:00:17]}  Ne4 {[%clk 0:00:46]} 52. Be3 {[%clk 0:00:25]}  Ke6 {[%clk 0:00:46]} 53. Rg7 {[%clk 0:00:25]}  Kxd6 {[%clk 0:00:46]} 54. Rxg6+ {[%clk 0:00:25]}  Ke5 {[%clk 0:00:46]} 55. Rh6 {[%clk 0:00:25]}  Rc3 {[%clk 0:00:46]} 56. Rxh5 {[%clk 0:00:25]}  Nf6 {[%clk 0:00:46]} 57. Rh8 {[%clk 0:00:30]}  Nd5 {[%clk 0:00:41]} 58. Rd8 {[%clk 0:00:30]}  Ke6 {[%clk 0:00:41]} 59. h4 {[%clk 0:00:30]}  Nf6 {[%clk 0:00:41]} 60. Ra8 {[%clk 0:00:30]}  Nh5 {[%clk 0:00:41]} 61. Ra5 {[%clk 0:00:30]}  Rb3 {[%clk 0:00:41]} 62. Kg2 {[%clk 0:00:36]}  Nf6 {[%clk 0:00:31]} 63. Bd4 {[%clk 0:00:36]}  Ne4 {[%clk 0:00:31]} 64. Re5+ {[%clk 0:00:36]} 1-0


[Site "http://www.Chess.com"]

[Event "FIDE World Rapid Chess Championship 2021"]
[White "Vachier-Lagrave, Maxime"]
[Black "Volokitin, Andrei"]
[WhiteFideId "623539"]
[BlackFideId "14107090"]
[WhiteElo "2773"]
[BlackElo "2631"]
[Result "0-1"]
[Round "06"]
[TimeControl "900+10"]
[Date "2021.12.27"]
[WhiteClock "0:02:07"]
[BlackClock "0:00:31"]

1. Nf3 {[%clk 0:15:00]}  d5 {[%clk 0:15:00]} 2. g3 {[%clk 0:15:19]}  Nf6 {[%clk 0:15:00]} 3. Bg2 {[%clk 0:15:19]}  c5 {[%clk 0:15:00]} 4. O-O {[%clk 0:15:19]}  g6 {[%clk 0:15:00]} 5. c4 {[%clk 0:15:33]}  Bg7 {[%clk 0:15:09]} 6. cxd5 {[%clk 0:13:56]}  Nxd5 {[%clk 0:15:16]} 7. Qc2 {[%clk 0:13:56]}  Qa5 {[%clk 0:15:24]} 8. Nc3 {[%clk 0:12:33]}  Nb4 {[%clk 0:02:38]} 9. Qd1 {[%clk 0:12:33]}  c4 {[%clk 0:02:37]} 10. b3 {[%clk 0:11:42]}  Nd5 {[%clk 0:01:32]} 11. Nxd5 {[%clk 0:10:14]}  Bxa1 {[%clk 0:00:53]} 12. bxc4 {[%clk 0:09:01]}  Bg7 {[%clk 0:00:53]} 13. d4 {[%clk 0:09:07]}  e6 {[%clk 0:00:26]} 14. Bd2 {[%clk 0:09:07]}  Qd8 {[%clk 0:00:26]} 15. Nc3 {[%clk 0:06:01]}  O-O {[%clk 0:00:32]} 16. Bg5 {[%clk 0:06:01]}  Qa5 {[%clk 0:00:32]} 17. Qd3 {[%clk 0:06:01]}  Nc6 {[%clk 0:00:32]} 18. Rb1 {[%clk 0:06:01]}  Nxd4 {[%clk 0:00:37]} 19. Nb5 {[%clk 0:05:33]}  Nxb5 {[%clk 0:00:37]} 20. Rxb5 {[%clk 0:04:19]}  Qxa2 {[%clk 0:00:37]} 21. h4 {[%clk 0:04:19]}  e5 {[%clk 0:00:37]} 22. Nd2 {[%clk 0:04:19]}  h6 {[%clk 0:00:34]} 23. Be7 {[%clk 0:03:51]}  Re8 {[%clk 0:00:34]} 24. Bd6 {[%clk 0:03:51]}  Bf5 {[%clk 0:00:34]} 25. Be4 {[%clk 0:03:15]}  Bxe4 {[%clk 0:00:40]} 26. Nxe4 {[%clk 0:03:15]}  b6 {[%clk 0:00:40]} 27. h5 {[%clk 0:03:15]}  gxh5 {[%clk 0:00:40]} 28. Bb4 {[%clk 0:02:49]}  Rad8 {[%clk 0:00:33]} 29. Nd6 {[%clk 0:02:49]}  Re6 {[%clk 0:00:33]} 30. Rd5 {[%clk 0:02:49]}  h4 {[%clk 0:00:30]} 31. Nf5 {[%clk 0:02:51]}  Qa1+ {[%clk 0:00:30]} 32. Kg2 {[%clk 0:02:51]}  h3+ {[%clk 0:00:30]} 33. Kh2 {[%clk 0:02:51]}  Rxd5 {[%clk 0:00:30]} 34. cxd5 {[%clk 0:02:51]}  Qf1 {[%clk 0:00:30]} 35. Ne3 {[%clk 0:02:28]}  Qxf2+ {[%clk 0:00:31]} 36. Kxh3 {[%clk 0:02:28]}  Rg6 {[%clk 0:00:31]} 37. Nf5 {[%clk 0:02:28]}  Qf1+ {[%clk 0:00:31]} 38. Kh2 {[%clk 0:02:28]}  Rg5 {[%clk 0:00:31]} 39. Nh4 {[%clk 0:02:07]}  Qf2+ {[%clk 0:00:31]} 40. Kh3 {[%clk 0:02:07]}  e4 {[%clk 0:00:31]} 0-1


[Site "http://www.Chess.com"]

[Event "FIDE World Rapid Chess Championship 2021"]
[White "Caruana, Fabiano"]
[Black "Vidit, Santosh Gujrathi"]
[WhiteFideId "2020009"]
[BlackFideId "5029465"]
[WhiteElo "2770"]
[BlackElo "2629"]
[Result "1-0"]
[Round "06"]
[TimeControl "900+10"]
[Date "2021.12.27"]
[WhiteClock "0:13:37"]
[BlackClock "0:05:55"]

1. d4 {[%clk 0:15:00]}  Nf6 {[%clk 0:15:00]} 2. c4 {[%clk 0:15:00]}  e6 {[%clk 0:15:00]} 3. Nc3 {[%clk 0:15:00]}  Bb4 {[%clk 0:15:33]} 4. Qc2 {[%clk 0:15:43]}  O-O {[%clk 0:15:33]} 5. e4 {[%clk 0:15:43]}  d5 {[%clk 0:15:33]} 6. e5 {[%clk 0:15:43]}  Ne4 {[%clk 0:15:33]} 7. Bd3 {[%clk 0:15:43]}  c5 {[%clk 0:15:33]} 8. Nf3 {[%clk 0:15:43]}  cxd4 {[%clk 0:15:33]} 9. Nxd4 {[%clk 0:15:43]}  Nd7 {[%clk 0:15:33]} 10. Bf4 {[%clk 0:15:43]}  Qh4 {[%clk 0:15:33]} 11. g3 {[%clk 0:15:43]}  Qh5 {[%clk 0:15:33]} 12. O-O {[%clk 0:15:43]}  Bxc3 {[%clk 0:16:01]} 13. bxc3 {[%clk 0:16:41]}  g5 {[%clk 0:16:01]} 14. cxd5 {[%clk 0:16:41]}  exd5 {[%clk 0:16:01]} 15. Be3 {[%clk 0:16:29]}  Nxe5 {[%clk 0:15:28]} 16. f3 {[%clk 0:16:29]}  Nxd3 {[%clk 0:15:28]} 17. Qxd3 {[%clk 0:16:29]}  Nd6 {[%clk 0:15:28]} 18. g4 {[%clk 0:16:29]}  Qg6 {[%clk 0:15:28]} 19. Qxg6+ {[%clk 0:16:29]}  fxg6 {[%clk 0:15:28]} 20. Bxg5 {[%clk 0:16:29]}  Re8 {[%clk 0:15:28]} 21. Bf4 {[%clk 0:16:29]}  Nc4 {[%clk 0:14:31]} 22. Nb5 {[%clk 0:16:26]}  Rf8 {[%clk 0:11:41]} 23. Bh6 {[%clk 0:16:26]}  Rd8 {[%clk 0:11:36]} 24. Rfe1 {[%clk 0:15:52]}  Kf7 {[%clk 0:08:40]} 25. Rad1 {[%clk 0:14:19]}  b6 {[%clk 0:08:40]} 26. Rd4 {[%clk 0:13:29]}  g5 {[%clk 0:07:04]} 27. Bxg5 {[%clk 0:13:29]}  Rd7 {[%clk 0:05:55]} 28. Rf4+ {[%clk 0:13:37]}  Kg6 {[%clk 0:05:55]} 29. Re6+ {[%clk 0:13:37]} 1-0


[Site "http://www.Chess.com"]